Cogmind - Beta 11 @@@ ROGUE MODE // 2022.03.31 @ 01:59:20 Player: Catfish Result: Self-destructed Performance ------------- Evolutions (2) 1000 Regions Visited (5) 1000 Robots Destroyed (25) 125 Value Destroyed (527) 527 Prototype IDs (0) 0 Alien Tech Used (0) 0 Bonus (0) 0 TOTAL SCORE: 2652 Bonus ------- None Cogmind --------- Core Integrity 550/550 Matter 290/300 Energy 125/125 System Corruption 0% Temperature Cool (0) Movement Treading (165) Location -8/Materials Parts ------- > --- POWER (1) -------- Light Ion Engine > --- PROPULSION (3) --- Light Treads Armored Treads > --- UTILITY (5) ------ Small Storage Unit Improved Targeting Computer Improved Light Armor Plating > --- WEAPON (2) ------- Makeshift Axe > --- INVENTORY (8) ---- Flight Unit Flight Unit Flight Unit VTOL Module VTOL Module Experimental Sensor Array Propulsion Shielding Mini Grenade Launcher Peak State ------------ > --- POWER ------------ Light Ion Engine > --- PROPULSION ------- Light Treads Armored Treads > --- UTILITY ---------- Small Storage Unit Improved Targeting Computer Improved Light Armor Plating > --- WEAPON ----------- Makeshift Axe > --- INVENTORY -------- Flight Unit Flight Unit Flight Unit VTOL Module VTOL Module Experimental Sensor Array Propulsion Shielding Mini Grenade Launcher [Rating: 16] Favorites ----------- Power Light Ion Engine Engine Light Ion Engine Propulsion Compact Wheel Treads Light Treads Wheel Compact Wheel Flight Unit Flight Unit Utility Small Storage Unit Storage Small Storage Unit Processor Improved Targeting Computer Protection Light Armor Plating Weapon Assault Rifle Energy Gun Small Laser Energy Cannon EM Pulse Cannon Ballistic Gun Assault Rifle Slashing Weapon Makeshift Axe Build | -11 -10 -10 -9 -9 -8 ------- Run | Scr Mat Min Mat Min Mat Slots Evolved 4 | . . . 2 . 2 Power . | . . . . . . Propulsion 1 | . . . 1 . . Utility 3 | . . . 1 . 2 Weapon . | . . . . . . Parts Attached 28 | 6 2 5 4 10 1 Power 4 | 1 . 1 . 2 . Engine 4 | 1 . 1 . 2 . Core . | . . . . . . Reactor . | . . . . . . Propulsion 11 | 2 . 2 . 6 1 Treads 6 | . . . . 5 1 Leg . | . . . . . . Wheel 4 | 2 . 2 . . . Hover . | . . . . . . Flight 1 | . . . . 1 . Utility 6 | 1 1 . 2 2 . Device . | . . . . . . Storage 1 | 1 . . . . . Processor 1 | . . . 1 . . Hackware . | . . . . . . Protection 4 | . 1 . 1 2 . Artifact . | . . . . . . Weapon 7 | 2 1 2 2 . . Energy Gun 1 | 1 . . . . . Energy Cannon 1 | . . . 1 . . Ballistic Gun 4 | 1 1 1 1 . . Ballistic Cannon . | . . . . . . Launcher . | . . . . . . Special Weapon . | . . . . . . Impact Weapon . | . . . . . . Slashing Weapon 1 | . . 1 . . . Piercing Weapon . | . . . . . . Special Melee Weapon . | . . . . . . Unidentified Prototypes . | . . . . . . Parts Lost 9 | . . . 1 8 . Power 1 | . . . . 1 . Propulsion 4 | . . . . 4 . Utility 3 | . . . 1 2 . Weapon 1 | . . . . 1 . Highest Loss Streak 4 | . . . 1 4 . To Critical Strikes . | . . . . . . Average Slot Usage (%) 89 | . 100 100 84 82 60 Engine 12 | . 14 14 11 10 9 Treads 4 | . . . . 11 15 Wheel 19 | . 28 28 22 11 . Flight 1 | . . . . 3 . Storage 12 | . 14 14 11 11 9 Processor 5 | . . . 7 11 9 Protection 10 | . 14 14 10 6 9 Energy Cannon 2 | . . . 1 5 . Ballistic Gun 10 | . 27 17 9 . . Slashing Weapon 8 | . . 10 11 11 9 Naked Turns . | . . . . . . Heaviest Build 20 | 11 15 16 20 20 14 Greatest Support 60 | 26 26 32 26 60 40 Greatest Overweight (x) 3 | 3 . . . . . Average Overweight (x) . | 1 . . . . . Largest Inventory Capacity 8 | 8 8 8 8 8 8 Average Capacity 7 | 7 8 8 8 8 8 Most Carried 8 | 4 8 8 8 8 8 Average Carried 7 | 2 7 8 7 7 8 Final Capacity 8 | 8 8 8 8 8 8 Final Carried 8 | 4 8 8 8 8 8 Class Distribution -------------------- 90% | Mutant 9% | Scavenger-Mutant Dominant Class ---------------- Mutant | -10/Materials Mutant | -10/Mines Mutant | -9/Materials Mutant | -9/Mines Mutant | -8/Materials Resources | -11 -10 -10 -9 -9 -8 ----------- Run | Scr Mat Min Mat Min Mat Matter Collected 587 | 181 87 161 63 95 . Remotely . | . . . . . . Salvage Created 776 | . 87 85 353 251 . Parts 57 | . 13 13 23 8 . Haulers Intercepted . | . . . . . . Recyclers Shooed 1 | . . 1 . . . Parts Field Recycled . | . . . . . . Retrieved Matter . | . . . . . . Parts Self-Destructed . | . . . . . . Prevented . | . . . . . . Kills | -11 -10 -10 -9 -9 -8 ------- Run | Scr Mat Min Mat Min Mat Combat Hostiles Destroyed 25 | . 3 5 7 10 . Melee 17 | . . 1 7 9 . Guns 7 | . 3 4 . . . Cannons 1 | . . . . 1 . Classes Destroyed 7 | . 3 . 2 2 . Worker 3 | . 2 . 1 . . Watcher 2 | . 1 . 1 . . Swarmer 11 | . 3 5 1 2 . Grunt 4 | . . . 4 . . Sentry 4 | . . . 2 2 . Demolisher 1 | . . . . 1 . Assembled 5 | . . . . 5 . Best Kill Streak 7 | . 4 3 7 5 . Combat Bots Only 5 | . 3 3 5 5 . Max Kills in Single Turn 2 | . 2 1 1 1 . Gunslinging 1 | . 1 . . . . Exploded . | . . . . . . Melee 1 | . . 1 1 1 . Uniques/NPCs Destroyed . | . . . . . . Combat | -11 -10 -10 -9 -9 -8 -------- Run | Scr Mat Min Mat Min Mat Damage Taken 1427 | . 69 135 199 1024 . Core 343 | . 22 19 22 280 . Absorbed by Shields . | . . . . . . Core Remaining (%) 69 | 100 . 83 . 24 . Volleys Fired 28 | . 8 17 2 1 . Largest 2 | . 2 2 1 1 . Hottest 63 | . 40 40 20 63 . Shots Fired 45 | . 16 26 2 1 . Gun 44 | . 16 26 2 . . Cannon 1 | . . . . 1 . Launcher . | . . . . . . Special . | . . . . . . Kinetic 44 | . 16 26 2 . . Thermal . | . . . . . . Explosive . | . . . . . . Electromagnetic 1 | . . . . 1 . Robot Hit Streak 5 | . 5 5 2 3 . Robot Miss Streak 4 | . 3 4 . . . Penetration Max . | . . . . . . Secondary Targets 1 | . 1 . . . . Max Gunslinging Chain 1 | . 1 . . . . Shots Hit Robots 54 | . 9 12 15 18 . Core Hits 29 | . 7 4 9 9 . Critical Kills . | . . . . . . Critical Parts Destroyed . | . . . . . . Critical Strikes 1 | . . . . 1 . Sever 1 | . . . . 1 . Melee Attacks 63 | . . 5 29 29 . Impact . | . . . . . . Slashing 63 | . . 5 29 29 . Piercing . | . . . . . . Sneak Attacks 1 | . . . 1 . . Combat Hostiles . | . . . . . . Follow-up Attacks . | . . . . . . Damage Inflicted 1596 | . 117 244 518 717 . Guns 254 | . 117 115 22 . . Cannons 21 | . . . . 21 . Explosions . | . . . . . . Melee 1321 | . . 129 496 696 . Ramming . | . . . . . . Kinetic 254 | . 117 115 22 . . Thermal . | . . . . . . Explosive . | . . . . . . Electromagnetic 21 | . . . . 21 . Impact . | . . . . . . Slashing 1321 | . . 129 496 696 . Piercing . | . . . . . . Highest Corruption . | . . . . . . Average Corruption . | . . . . . . Corruption Purged . | . . . . . . Corruption Blocked . | . . . . . . Overload Shots . | . . . . . . Overflow Damage 65 | . . 29 . 36 . Projectiles . | . . . . . . Explosions . | . . . . . . Melee 65 | . . 29 . 36 . Knockbacks . | . . . . . . Impact . | . . . . . . Kinetic . | . . . . . . Secondary . | . . . . . . Self-Inflicted Damage . | . . . . . . Shots . | . . . . . . Rammed . | . . . . . . Targets Rammed . | . . . . . . Kicked . | . . . . . . Crushed . | . . . . . . Highest Temperature 24 | . . 9 . 24 . Average Temperature 7 | . . 5 . 8 . Received Heat Transfer 331 | . . . 87 244 . Siege Activations . | . . . . . . Robots Corrupted . | . . . . . . Combat Hostiles . | . . . . . . Parts Fried . | . . . . . . Impact Corruptions . | . . . . . . Robots Melted . | . . . . . . Combat Hostiles . | . . . . . . Parts Melted . | . . . . . . Heat Transferred . | . . . . . . Parts Sabotaged . | . . . . . . Parts Stolen . | . . . . . . Parts Stripped . | . . . . . . Power Chain Reactions . | . . . . . . Missiles Intercepted . | . . . . . . Alert | -11 -10 -10 -9 -9 -8 ------- Run | Scr Mat Min Mat Min Mat Peak Influence 282 | . 119 181 282 203 11 Initial 109 | . . 46 . 109 11 Average 101 | . 76 103 145 116 11 Maximum Alert Level 1 | . . . 1 1 . Low Security (%) 88 | 100 100 100 58 84 100 Level 1 11 | . . . 41 15 . Level 2 . | . . . . . . Level 3 . | . . . . . . Level 4 . | . . . . . . Level 5 . | . . . . . . High Security . | . . . . . . Max Security . | . . . . . . Squads Dispatched 1 | . . . 1 . . Investigation . | . . . . . . Extermination . | . . . . . . Reinforcement 1 | . . . 1 . . Assault . | . . . . . . Garrison . | . . . . . . Intercept . | . . . . . . Searches Triggered . | . . . . . . Construction Impeded . | . . . . . . Haulers Reinforced . | . . . . . . Active Scanning Responses . | . . . . . . Cargo Convoy Interrupts . | . . . . . . Stealth | -11 -10 -10 -9 -9 -8 --------- Run | Scr Mat Min Mat Min Mat Distress Signals . | . . . . . . Communications Jammed . | . . . . . . Distress Signals . | . . . . . . Times Spotted 38 | . 6 6 11 12 3 Peak Tracking Total 5 | . 3 3 5 5 3 Tactical Retreats 4 | . 1 1 1 1 . Traps | -11 -10 -10 -9 -9 -8 ------- Run | Scr Mat Min Mat Min Mat Traps Triggered . | . . . . . . Indirectly . | . . . . . . Trap Hack Attempts . | . . . . . . Triggered . | . . . . . . Disarmed . | . . . . . . Reprogrammed . | . . . . . . Reused . | . . . . . . Traps Extracted . | . . . . . . Installed . | . . . . . . Triggered . | . . . . . . Machines | -11 -10 -10 -9 -9 -8 ---------- Run | Scr Mat Min Mat Min Mat Machines Disabled . | . . . . . . Max in Single Turn . | . . . . . . Machines Sabotaged . | . . . . . . Garrisons Compromised . | . . . . . . Overloaded Fab Kills . | . . . . . . Hacking | -11 -10 -10 -9 -9 -8 --------- Run | Scr Mat Min Mat Min Mat Machines Accessed 7 | . 4 . 2 1 . Terminals 6 | . 4 . 2 . . Fabricators . | . . . . . . Repair Stations . | . . . . . . Recycling Units . | . . . . . . Scanalyzers . | . . . . . . Garrison Access . | . . . . . . Total Hacks 13 | . 6 . 6 1 . Successful 8 | . 5 . 2 1 . Failed 5 | . 1 . 4 . . Catastrophic 2 | . 1 . 1 . . Database Lockouts . | . . . . . . Manual 9 | . 4 . 5 . . Terminals 12 | . 6 . 6 . . Fabricators . | . . . . . . Repair Stations . | . . . . . . Recycling Units . | . . . . . . Scanalyzers . | . . . . . . Garrison Access . | . . . . . . Terminal Hacks 5 | . 3 . 1 1 . Open Door 1 | . . . . 1 . Branch Access Points 2 | . 1 . 1 . . Emergency Access Points 1 | . 1 . . . . Zone Layout 1 | . 1 . . . . Fabricator Hacks . | . . . . . . Repair Station Hacks . | . . . . . . Recycling Unit Hacks . | . . . . . . Scanalyzer . | . . . . . . Garrison Access Hacks . | . . . . . . Unauthorized Hacks 3 | . 2 . 1 . . Terminals 3 | . 2 . 1 . . Botnet 3 | . 2 . 1 . . Fabricators . | . . . . . . Repair Stations . | . . . . . . Recycling Units . | . . . . . . Scanalyzers . | . . . . . . Garrison Access . | . . . . . . Data Cores Recovered . | . . . . . . Used . | . . . . . . Hacking Detections 5 | . 3 . 2 . . Full Trace Events . | . . . . . . Feedback Events . | . . . . . . Feedback Blocked . | . . . . . . Robot Schematics Acquired . | . . . . . . Robots Built . | . . . . . . Authchips . | . . . . . . Time . | . . . . . . Total Robot Build Rating . | . . . . . . Part Schematics Acquired . | . . . . . . Parts Built . | . . . . . . Authchips . | . . . . . . Time . | . . . . . . Total Part Build Rating . | . . . . . . Parts Repaired . | . . . . . . Time . | . . . . . . Parts Recycled . | . . . . . . Recycled Matter . | . . . . . . Retrieved Matter . | . . . . . . Retrieved Components . | . . . . . . Parts Scanalyzed . | . . . . . . Part Schematics Acquired . | . . . . . . Parts Damaged . | . . . . . . Bothacking | -11 -10 -10 -9 -9 -8 ------------ Run | Scr Mat Min Mat Min Mat Used RIF Installer . | . . . . . . Robots Hacked . | . . . . . . Non-combat . | . . . . . . Combat . | . . . . . . Robot Hacks Applied . | . . . . . . Relay Couplers Released . | . . . . . . Fabnet Peak Effective % . | . . . . . . Robots Rewired . | . . . . . . Allies Hacked . | . . . . . . Hacks Repelled . | . . . . . . Allies | -11 -10 -10 -9 -9 -8 -------- Run | Scr Mat Min Mat Min Mat Total Allies 2 | . . . . 2 . Largest Group 2 | . . . . 2 2 Highest-Rated Group 45 | . . . . 45 45 Highest-Rated Ally 31 | . . . . 31 31 Total Orders . | . . . . . . Ally Attacks . | . . . . . . Total Damage . | . . . . . . Kills . | . . . . . . Allies Corrupted . | . . . . . . Allies Melted . | . . . . . . Intel | -11 -10 -10 -9 -9 -8 ------- Run | Scr Mat Min Mat Min Mat Robot Analysis Total . | . . . . . . Derelict Logs Recovered 4 | . . 2 . 2 . Drone Launches . | . . . . . . Drone Recoveries . | . . . . . . Exploration | -11 -10 -10 -9 -9 -8 ------------- Run | Scr Mat Min Mat Min Mat Turns Passed 1722 | 70 285 447 238 606 76 Spaces Moved 1395 | 45 270 424 157 454 45 Core 24 | 24 . . . . . Treads 199 | . . . . 154 45 Legs . | . . . . . . Wheels 1172 | 21 270 424 157 300 . Hover . | . . . . . . Flight . | . . . . . . Fastest Speed 50 | 50 90 90 90 90 160 Average Speed 101 | 126 90 90 90 113 164 Slowest Speed 200 | 200 90 100 90 160 165 Overloaded Moves . | . . . . . . Propulsion Burnouts . | . . . . . . Robots Hopped . | . . . . . . Cave-ins Triggered . | . . . . . . Exploration Rate (%) 39 | 4 43 69 23 89 8 Regions Visited 5 Branch Regions 2 Pre-discovered Areas 2 | . . . . 2 . Known Exits Taken 2 | . 1 . 1 . . Unknown Exits Taken 3 | 1 . 1 . 1 . Scrap Searched 3 | . . 2 . 1 . Spaces Dug 9 | . . . 6 3 . Terrain Destroyed 9 | . . . 6 3 . Melee 9 | . . . 6 3 . Projectile . | . . . . . . AOE . | . . . . . . Terrain Rammed . | . . . . . . Walls Destroyed . | . . . . . . Machines Disabled . | . . . . . . Actions | -11 -10 -10 -9 -9 -8 --------- Run | Scr Mat Min Mat Min Mat Total 1601 | 54 300 462 227 512 46 Wait 37 | . 3 3 21 10 . Move 1390 | 44 269 423 156 453 45 Hop . | . . . . . . Pick Up 28 | 4 11 2 7 4 . Fast Attach 17 | 6 1 2 2 5 1 Attach 2 | . . . 1 1 . Detach . | . . . . . . Swap 9 | . 1 3 1 4 . Drop 27 | . 7 7 8 5 . Fire 28 | . 8 17 2 1 . Melee 63 | . . 5 29 29 . Ram . | . . . . . . Kick . | . . . . . . Crush . | . . . . . . Escape Stasis . | . . . . . . Rewire . | . . . . . . Trap . | . . . . . . Miscellaneous . | . . . . . . Route ------- -11/Scrapyard -10/Materials (discovered 2 exits: *Mat / *Min) -10/Mines -9/Materials (discovered 2 exits: *Min / Sto) -9/Mines (discovered 3 exits: [*Mat x2] / [*Exi]) -8/Materials History --------- Turn | Location | Event 28 | -11/Scrapyard | Discovered new exit (range 15) 71 | -11/Scrapyard | Entered Materials 99 | -10/Materials | Identified exit to Mines 309 | -10/Materials | Build established: Mutant 311 | -10/Materials | Discovered new exit (range 8) 356 | -10/Materials | Entered Mines 438 | -10/Mines | Learned Materials terminal intel 469 | -10/Mines | A weapon hastily lodged in a ceiling crevice suddenly fell to the ground 554 | -10/Mines | Discovered new exit (range 13) 803 | -10/Mines | Entered Materials 803 | -9/Materials | Evolved 2 slots: Propulsion x1, Utility x1 804 | -9/Materials | Identified exit to Mines 805 | -9/Materials | Loaded intel: 12 terminal locations 815 | -9/Materials | Identified exit to Storage 1041 | -9/Materials | Entered Mines 1207 | -9/Mines | Learned location of Zion (-6) 1220 | -9/Mines | Deemed a non-threat by the Exiles lab entrance 1220 | -9/Mines | Discovered new exit (range 5) 1253 | -9/Mines | Discovered new exit (range 3) 1254 | -9/Mines | Learned location of Storage (-9) 1306 | -9/Mines | Found a damaged Exp. Sensor Array with a note attached 1309 | -9/Mines | Found Prototype Device 1326 | -9/Mines | Learned Materials terminal intel 1385 | -9/Mines | Lost 4 parts (1p2n1w) 1445 | -9/Mines | Found the Drone Emporium 1451 | -9/Mines | Assembled infested the area 1466 | -9/Mines | Core integrity fell below 50% 1572 | -9/Mines | Lost 3 parts (2n1u) 1591 | -9/Mines | Discovered new exit (range 12) 1647 | -9/Mines | Entered Materials 1647 | -8/Materials | Accompanied by 2 allies 1647 | -8/Materials | Evolved 2 slots: Utility x2 1648 | -8/Materials | Loaded intel: 12 terminal locations 1652 | -8/Materials | Led the pair of lost Derelicts to an unsafe place 1723 | -8/Materials | Self-destructed Last Messages --------------- 01544_ U-05 Engineer lays Concrete. 01545_ D-53 Grenadier destroyed. 01545_ U-05 Engineer lays Concrete. 01547_ The unstable cave ceiling collapses. 01547_ U-05 Engineer lays Concrete. 01548_ The unstable cave ceiling collapses. 01548_ Acquired Imp. Light Armor Plating. 01550_ Acquired 10 matter. 01551_ The unstable cave ceiling collapses. 01591_ EXIT=FOUND 01594_ A pair of derelicts emerge from the shadows: "We're, um, lost. You wouldn't happen to know the way out of here, would you?" [Achievement: I Survived The Infestation] PARAMETERS=UTILITY+2 LOCATION=UNKNOWN GOAL=ESCAPE Loading Materials terminal intel (x12)... 01652_ HP-15L(g): "This place looks worse than where we left..." 01657_ HP-15L(g): "Following you was a bad idea, I think." 01662_ Acquired Arm. Treads. Map ----- +----------------------------------------------------+ | ????????????????????????????? | | ????????????????????????????? | | ????????????????????????????? | | ????????????????????????????? | | ????????????????????????????? | | ????????????????????????????? | | ????????????????????????????? | | ????????????????????????????? | | ????????????T???????????????? | | ????????????????????????????? | | ????????????????????????????? | | ????????????????????????????? | | ????????????????????????????? | | ????????????????????????????? | | ????????????????????????????? | | ????????????????????????????? | | ????????????????????????????? | | ????????????????????????????? | | ????????????????????????????? | | ????????##+###### #?????????? | | ?#####??# l ??????????? | | ?#** #### gg ?????????? | | ?#** ^ ????????????? | | ?#[[ #???????????????? | | ?#[[ #???????????????? | | ?#**@ #???????????????? | | ?#** #???????????????? | | ?##### g #???????????????? | | ?????# #???????????????? | | ?????# #???????????????? | | ?????# z #???????????????? | | ?????# #???????????????? | | ?????#+## #???????????????? | | ????????# ##########+###### | | ????????# | | ????????# | | ????????# | | ????????######## ###+###### | | ???????????????# #????????? | | ???????????????# #????????? | | ????????######## #????????? | | ?######## #????????? | | ?# # #????????? | | ?# # #????????? | | ?# + ###+####????????? | | ?# # # ??????????? | | ?# # # """ ????????? | | ?# # # "Y" #??????? | | ?############ #??????? | | ????????????# #??????? | +----------------------------------------------------+ Best States ------------- Heat Dissipation 31 Energy Generation 10 Energy Capacity 125 Matter Stores 300 Matter Capacity 300 Sight Range 16 Terrain Scan Density 10 Armor Coverage 150 Evasion (%) 42 Targeting Accuracy 6 Recoil Reduction 3 Item Schematics ----------------- None Robot Schematics ------------------ None Fabricated ------------ Nothing Alien Tech Used ----------------- None Achievements -------------- I Survived The Infestation Challenges ------------ None Game ------ Seed MiniCoreSabre Manual? 0 Play Time 00:18:15 Cumulative 3.8 hours Start 2022.03.31 @ 01:38:27 End 2022.03.31 @ 01:59:20 Sessions 1 Manual Loads 0 Difficulty Rogue Special Mode None Game No. 16 Rogue 16 Adventurer 0 Explorer 0 Win Type - Total 0 Types 0/0/0/0/0/0/0/0/0 Lore% 4 Gallery% 11 Achievement% 12 Wizard Run 0 Options --------- ASCII 0 Keyboard 0 Movement Numpad Keybinds 0 Fullscreen 2 Font 18/X11Bold Map View 76x50 Tactical HUD 1 Map Filters NONE Filters NONE Steam 1 RUN: 86132594-2a30-42ce-9c49-eb56d59219bc